bitfinex/quotes_BTCUSD_20240826
["timestamp","ask_amount","ask_price","bid_price","bid_amount"]
[1724679288969,1.36318619,63852.0,63851.0,0.001223]
[1724679289185,0.98346219,63852.0,63851.0,0.002223]
[1724679289405,0.98346219,63852.0,63851.0,0.001223]
[1724679289611,0.99746219,63852.0,63851.0,0.001223]
[1724679289813,1.01146219,63852.0,63851.0,0.002223]
[1724679290014,0.57023819,63852.0,63851.0,0.001223]
[1724679290245,0.49403819,63852.0,63851.0,0.001223]
[1724679290469,0.82126219,63852.0,63851.0,0.002223]
[1724679290702,0.82126219,63852.0,63851.0,0.001223]
[1724679290919,0.80726219,63852.0,63851.0,0.001223]
[1724679291265,0.03620219,63852.0,63851.0,0.001223]
[1724679291780,0.014,63852.0,63851.0,0.001223]
[1724679291985,0.19169655,63852.0,63851.0,0.002223]
[1724679292193,0.03508455,63852.0,63851.0,0.002223]
[1724679292607,0.04308455,63852.0,63851.0,0.002223]
[1724679292817,0.01808455,63852.0,63851.0,0.180837]
[1724679293248,0.01808455,63852.0,63851.0,0.495066]
[1724679293249,0.02508455,63852.0,63851.0,0.495066]
[1724679293470,0.02508455,63852.0,63851.0,0.181837]
[1724679293682,0.015,63852.0,63851.0,0.181837]
[1724679293892,0.01709632,63852.0,63851.0,0.181837]
[1724679294126,0.01709632,63852.0,63851.0,0.495066]
[1724679294335,0.02209632,63852.0,63851.0,0.181837]
[1724679294551,0.01509632,63852.0,63851.0,0.024223]
[1724679294763,0.01009632,63852.0,63851.0,0.180837]
[1724679294999,0.01009632,63852.0,63851.0,0.002223]
[1724679295000,0.47993232,63852.0,63851.0,0.002223]
[1724679295205,0.78287177,63852.0,63851.0,0.002223]
[1724679295433,1.10619209,63852.0,63851.0,0.002223]
[1724679295639,0.16652009,63852.0,63851.0,0.002223]
[1724679295856,0.16670832,63852.0,63851.0,0.002223]
[1724679296072,0.16770832,63852.0,63851.0,0.002223]
[1724679296300,0.79315632,63852.0,63851.0,0.002223]
[1724679296506,1.10638032,63852.0,63851.0,0.002223]
[1724679296715,1.10638032,63852.0,63851.0,0.003223]
[1724679296716,1.11338032,63852.0,63851.0,0.003223]
[1724679296924,1.17768032,63852.0,63851.0,0.002223]
[1724679297130,1.49090432,63852.0,63851.0,0.002223]
[1724679297334,1.57480432,63852.0,63851.0,0.002223]
[1724679297567,1.26158032,63852.0,63851.0,0.002223]
[1724679297768,1.25658032,63852.0,63851.0,0.002223]
[1724679298208,1.26158032,63852.0,63851.0,0.002223]
[1724679298416,1.36158032,63852.0,63851.0,0.002223]
[1724679298619,1.38612114,63852.0,63851.0,0.002223]
[1724679299078,0.98405632,63852.0,63851.0,0.002223]
[1724679300147,0.67083232,63852.0,63851.0,0.002223]
[1724679300346,0.98405632,63852.0,63851.0,0.002223]
[1724679300595,0.12209632,63852.0,63851.0,0.002223]
[1724679300811,0.02209632,63852.0,63851.0,0.002223]
[1724679301027,0.02209632,63852.0,63851.0,0.158837]
[1724679301275,0.012,63852.0,63851.0,0.002223]
[1724679301507,0.02209715,63852.0,63851.0,0.002223]
[1724679301716,0.17870915,63852.0,63851.0,0.002223]
[1724679301944,0.481836,63852.0,63851.0,0.002223]
[1724679302154,0.17870875,63852.0,63851.0,0.002223]
[1724679302371,0.49193275,63852.0,63851.0,0.002223]
[1724679302588,0.80515675,63852.0,63851.0,0.002223]
[1724679303062,1.77341974,63852.0,63851.0,0.001223]
[1724679303306,1.82118276,63852.0,63851.0,0.001223]
[1724679303538,1.82218276,63852.0,63851.0,0.001223]
[1724679303750,1.82118276,63852.0,63851.0,0.002223]
[1724679303958,1.35078075,63852.0,63851.0,0.002223]
[1724679304396,1.34978075,63852.0,63851.0,0.001223]
[1724679304605,1.35578075,63852.0,63851.0,0.002223]
[1724679304809,1.36178075,63852.0,63851.0,0.002223]
[1724679305022,1.83118276,63852.0,63851.0,0.002223]
[1724679305485,1.83118276,63852.0,63831.0,0.0004]
[1724679305486,0.002,63839.0,63831.0,0.0004]
[1724679305725,1.179727,63832.0,63831.0,0.0004]
[1724679305906,1.70982701,63832.0,63831.0,0.0004]
[1724679306117,1.50469045,63832.0,63831.0,0.0004]
[1724679307596,1.50869045,63832.0,63831.0,0.0004]
[1724679307805,1.51069045,63832.0,63831.0,0.0004]
[1724679308847,2.29060349,63832.0,63831.0,0.0004]
[1724679309072,2.29060349,63832.0,63815.0,0.0045615]
[1724679309282,1.807605,63816.0,63815.0,0.0045615]
[1724679309527,2.12898301,63816.0,63815.0,0.0045615]
[1724679309742,1.48879,63812.0,63811.0,0.0004]
[1724679309959,1.74496801,63812.0,63811.0,0.0004]
[1724679310171,1.173524,63803.0,63793.0,0.1]
[1724679310426,1.273524,63803.0,63793.0,0.1]
[1724679310641,2.13163775,63803.0,63793.0,0.1]
[1724679310855,1.63868129,63794.0,63793.0,0.064798]
[1724679311102,2.1083683,63794.0,63793.0,0.064798]
[1724679311354,2.21687034,63794.0,63793.0,0.064798]
[1724679312091,1.81737005,63794.0,63793.0,0.064798]
[1724679312340,1.81837005,63794.0,63793.0,0.064798]
[1724679312826,1.412831,63792.0,63791.0,0.001226]
[1724679313074,1.56900901,63792.0,63791.0,0.001226]
[1724679313322,1.67721767,63792.0,63791.0,0.001226]
[1724679314179,1.36169967,63792.0,63791.0,0.001226]
[1724679314598,1.36369967,63792.0,63791.0,0.001226]
[1724679315622,1.69121767,63792.0,63791.0,0.001226]
[1724679315829,1.36369967,63792.0,63791.0,0.001226]
[1724679316034,1.39169967,63792.0,63791.0,0.001226]
[1724679316240,1.70521767,63792.0,63791.0,0.001226]
[1724679316453,1.77181767,63792.0,63791.0,0.001226]
[1724679316715,2.31926735,63792.0,63791.0,0.001226]
[1724679317125,2.29126735,63792.0,63791.0,0.001226]
[1724679317335,1.84961767,63792.0,63791.0,0.001226]
[1724679319022,1.83561767,63792.0,63791.0,0.001226]
[1724679319233,1.09726942,63772.0,63771.0,0.0004]
[1724679319439,1.56706443,63772.0,63771.0,0.0004]
[1724679319648,1.26390958,63772.0,63771.0,0.0004]
[1724679320054,0.79411457,63772.0,63771.0,0.0004]
[1724679320261,0.01046215,63772.0,63771.0,0.1415]
[1724679320474,0.313608,63774.0,63771.0,0.1415]
[1724679320685,0.48089537,63772.0,63771.0,0.0004]
[1724679320889,0.470425,63772.0,63771.0,0.0004]
[1724679321098,0.79851431,63772.0,63771.0,0.0004]
[1724679321718,0.01447231,63772.0,63771.0,0.0004]
[1724679322170,0.17128031,63772.0,63771.0,0.0004]
[1724679322381,0.01047231,63772.0,63771.0,0.0004]
[1724679322799,0.01047231,63772.0,63771.0,0.157211]
[1724679322800,0.003,63772.0,63771.0,0.157211]
[1724679323032,0.01043802,63772.0,63771.0,0.0004]
[1724679323236,0.156808,63772.0,63771.0,0.0004]
[1724679323442,0.01234458,63772.0,63771.0,0.0004]
[1724679323856,0.01234458,63772.0,63771.0,0.470833]
[1724679324067,0.01334458,63772.0,63771.0,0.551533]
[1724679324280,0.01334458,63772.0,63771.0,1.42245501]
[1724679324281,0.01134458,63772.0,63771.0,1.42245501]
[1724679324488,0.001,63772.0,63771.0,0.639033]
[1724679324731,0.001,63772.0,63771.0,0.1456]
[1724679324915,0.157808,63772.0,63771.0,0.1456]
[1724679325124,0.157808,63772.0,63771.0,0.0004]
[1724679325125,0.471425,63772.0,63771.0,0.0004]
[1724679325334,0.79442242,63772.0,63771.0,0.0004]
[1724679325561,1.26421743,63772.0,63771.0,0.0004]
[1724679325763,1.26421743,63772.0,63771.0,0.0014]
[1724679325969,0.79442242,63772.0,63771.0,0.0014]
[1724679326172,0.01038042,63772.0,63771.0,0.0014]
[1724679326387,0.01038042,63772.0,63771.0,0.548033]
[1724679326593,0.156799,63776.0,63772.0,0.156808]
[1724679327033,0.1,63782.0,63771.0,0.39122]
[1724679327252,0.47887332,63811.0,63773.0,0.0772]
[1724679327253,0.0644,63796.0,63773.0,0.0772]
[1724679327460,0.15617801,63803.0,63777.0,0.0622]
[1724679327661,0.0644,63805.0,63778.0,0.25800731]
[1724679327662,0.15617801,63802.0,63778.0,0.25800731]
[1724679327866,0.156752,63795.0,63791.0,0.15676]
[1724679328100,0.313467,63803.0,63791.0,0.15676]
[1724679328101,0.313474,63801.0,63791.0,0.313522]
[1724679328309,0.02455969,63829.0,63792.0,0.0641]
[1724679328310,0.156757,63793.0,63792.0,0.0641]
[1724679328541,0.313542,63788.0,63784.0,0.0814]
[1724679328748,0.313544,63787.0,63784.0,0.0814]
[1724679328958,0.31352,63792.0,63776.0,0.0814]
[1724679328959,0.075,63790.0,63776.0,0.0814]
[1724679329171,0.313554,63785.0,63776.0,0.0814]
[1724679329429,0.156774,63786.0,63776.0,0.0814]
[1724679329637,0.313512,63794.0,63787.0,0.15677]
[1724679329850,0.156762,63791.0,63787.0,0.15677]
[1724679330055,0.156762,63791.0,63785.0,0.156774]
[1724679330261,0.46962201,63808.0,63777.0,0.18230782]
[1724679330262,0.15617801,63808.0,63786.0,0.15617801]
[1724679330466,0.156743,63799.0,63794.0,0.156752]
[1724679330678,0.156745,63798.0,63792.0,0.313517]
[1724679330884,0.156744,63798.0,63794.0,0.156754]
[1724679331090,0.156755,63794.0,63789.0,0.156765]
[1724679331293,0.00391873,63801.0,63788.0,0.0754]
[1724679331294,0.0039188,63793.0,63788.0,0.0754]
[1724679331497,0.313556,63785.0,63782.0,0.0829]
[1724679331708,0.0793,63797.0,63780.0,0.0811]
[1724679331709,0.00391952,63796.0,63780.0,0.0811]
[1724679331917,0.156786,63781.0,63780.0,0.0811]
[1724679332147,0.00391967,63784.0,63771.0,0.0004]
[1724679332377,0.784042,63772.0,63771.0,0.0004]
[1724679332562,1.097659,63772.0,63771.0,0.0004]
[1724679332772,0.79259508,63772.0,63771.0,0.0004]
[1724679333820,1.11321208,63772.0,63771.0,0.0004]
[1724679334291,1.10621208,63772.0,63771.0,0.0004]
[1724679334515,1.10821208,63772.0,63771.0,0.0004]
[1724679334714,0.01155308,63772.0,63771.0,0.0004]
[1724679334941,0.00955308,63772.0,63771.0,0.0768]
[1724679335155,0.00955308,63772.0,63771.0,0.233611]
[1724679335390,0.47997808,63772.0,63771.0,0.0768]
[1724679335602,0.161808,63772.0,63771.0,0.0004]
[1724679335881,0.17030726,63772.0,63771.0,0.0004]
[1724679336113,0.01249926,63772.0,63771.0,0.0004]
[1724679336329,0.01549926,63772.0,63771.0,0.157211]
[1724679336544,0.01549926,63772.0,63771.0,0.0004]
[1724679336754,0.01149926,63772.0,63771.0,0.0004]
[1724679337020,0.01049926,63772.0,63771.0,0.0004]
[1724679337234,0.00949926,63772.0,63771.0,0.0014]
[1724679337696,0.01049926,63772.0,63771.0,0.0014]
[1724679337915,0.00849926,63772.0,63771.0,0.0004]
[1724679338343,0.01249926,63772.0,63771.0,0.0004]
[1724679338548,0.00849926,63772.0,63771.0,0.0004]
[1724679338758,0.313539,63788.0,63771.0,0.49320001]
[1724679338979,0.00851488,63772.0,63771.0,0.0234]
[1724679339179,0.470425,63772.0,63771.0,0.0004]
[1724679339384,0.79556326,63772.0,63771.0,0.0004]
[1724679339596,0.48194626,63772.0,63771.0,0.0004]
[1724679339801,0.01152126,63772.0,63771.0,0.0004]
[1724679340055,0.00852126,63772.0,63771.0,0.157211]
[1724679340237,0.001,63772.0,63771.0,0.65101101]
[1724679340457,0.00951488,63772.0,63771.0,0.96463301]
[1724679340677,0.001,63772.0,63771.0,0.65001101]
[1724679340911,0.156791,63779.0,63775.0,0.156799]
[1724679341122,0.156794,63778.0,63775.0,0.156799]
[1724679341334,0.313578,63780.0,63773.0,0.156805]
[1724679341583,0.94806,63828.0,63771.0,0.0004]
[1724679341584,0.156808,63772.0,63771.0,0.0004]
[1724679341820,0.784042,63772.0,63771.0,0.0004]
[1724679342300,1.097659,63772.0,63771.0,0.0004]
[1724679343007,1.35383701,63772.0,63771.0,0.0004]
[1724679343247,1.35483701,63772.0,63771.0,0.0014]
[1724679343983,0.001,63776.0,63771.0,0.15657801]
[1724679344201,0.09273581,63809.0,63771.0,0.15657801]
[1724679344202,0.005,63772.0,63771.0,0.1395]
[1724679344419,0.002,63772.0,63771.0,0.0004]
[1724679344629,0.158808,63772.0,63771.0,0.0004]
[1724679344863,0.012,63772.0,63771.0,0.0004]
[1724679346103,0.156802,63775.0,63771.0,0.0004]
[1724679346311,0.011,63772.0,63771.0,0.0004]
[1724679346521,0.011,63772.0,63771.0,0.157211]
[1724679346741,0.1,63784.0,63771.0,0.0835]
[1724679346949,0.313535,63789.0,63775.0,0.313601]
[1724679346950,0.413542,63788.0,63775.0,0.313601]
[1724679347118,0.413542,63788.0,63776.0,0.156797]
[1724679347373,0.1,63788.0,63776.0,0.313597]
[1724679347528,0.156776,63785.0,63777.0,0.023]
[1724679347690,0.1,63784.0,63777.0,0.023]
[1724679347897,0.1,63784.0,63776.0,0.023]
[1724679348116,0.1,63784.0,63772.0,0.0624]
[1724679348117,0.0039196,63783.0,63772.0,0.0624]
[1724679348314,0.16009761,63783.0,63771.0,0.0004]
[1724679348515,0.313577,63781.0,63771.0,0.0004]
[1724679348749,0.00392053,63780.0,63772.0,0.0757]
[1724679348955,0.156787,63781.0,63772.0,0.0757]
[1724679349177,0.156791,63779.0,63772.0,0.0757]
[1724679349386,0.003,63784.0,63772.0,0.0757]
[1724679349590,0.003,63784.0,63779.0,0.156791]
[1724679349791,0.003,63784.0,63783.0,0.156781]
[1724679349993,0.003,63800.0,63794.0,0.156753]
[1724679349994,0.15874,63800.0,63794.0,0.156753]
[1724679350204,0.156742,63799.0,63793.0,0.156755]
[1724679350363,0.156742,63799.0,63789.0,0.313532]
[1724679350364,0.313479,63801.0,63789.0,0.313532]
[1724679350582,0.0773,63803.0,63790.0,0.0879]
[1724679350826,0.00090861,63805.0,63797.0,0.0823]
[1724679351027,0.00190861,63805.0,63797.0,0.0823]
[1724679351249,0.014,63800.0,63795.0,0.3135]
[1724679351459,0.014,63800.0,63794.0,0.0823]
[1724679351856,0.014,63800.0,63788.0,0.313537]
[1724679351857,0.08051868,63799.0,63788.0,0.313537]
[1724679352065,0.156746,63798.0,63792.0,0.156758]
[1724679352269,0.327481,63800.0,63797.0,0.156745]
[1724679352270,0.014,63800.0,63797.0,0.156745]
[1724679352506,0.00090861,63805.0,63802.0,0.156733]
[1724679352712,0.00090861,63805.0,63799.0,0.389184]
[1724679352920,0.008,63803.0,63799.0,0.389184]
[1724679353136,0.00724487,63804.0,63800.0,0.156738]
[1724679353548,0.00724487,63803.0,63800.0,0.313475]
[1724679353761,0.00724487,63803.0,63799.0,0.0757]
[1724679353969,0.00090861,63805.0,63802.0,0.313469]
[1724679354182,0.00090861,63805.0,63794.0,0.389408]
[1724679354400,0.081,63803.0,63789.0,0.0759]
[1724679354618,0.22369713,63802.0,63782.0,0.1379]
[1724679354832,0.15677,63788.0,63783.0,0.15678]
[1724679355042,0.313531,63790.0,63777.0,0.156795]
[1724679355043,0.156783,63783.0,63777.0,0.156795]
[1724679355274,0.156783,63783.0,63776.0,0.0788]
[1724679355275,0.01211978,63787.0,63776.0,0.0788]
[1724679355486,0.00820019,63782.0,63776.0,0.0788]
[1724679355899,0.00820019,63782.0,63781.0,0.470359]
[1724679356104,0.156774,63786.0,63782.0,0.156783]
[1724679356513,0.156774,63786.0,63781.0,0.156784]
[1724679356694,0.156767,63789.0,63784.0,0.156778]
[1724679357141,0.078,63796.0,63777.0,0.001]
[1724679357348,0.413476,63801.0,63791.0,0.156759]
[1724679357556,0.413476,63801.0,63792.0,0.156759]
[1724679357557,0.156748,63797.0,63792.0,0.156759]
[1724679357758,0.156748,63797.0,63778.0,0.15617801]
[1724679357759,0.156756,63794.0,63788.0,0.156768]
[1724679357968,0.313499,63797.0,63781.0,0.001]
[1724679357969,0.156747,63797.0,63790.0,0.156761]
[1724679358171,0.156747,63797.0,63791.0,0.156761]
[1724679358375,0.313491,63798.0,63787.0,0.313542]
[1724679358579,0.156752,63795.0,63784.0,0.313558]
[1724679358783,0.1871,63801.0,63791.0,0.313523]
[1724679358987,0.1871,63801.0,63795.0,0.313501]
[1724679358988,0.109,63801.0,63795.0,0.313501]
[1724679359195,0.15674,63800.0,63795.0,0.156749]
[1724679359410,0.15674,63800.0,63789.0,0.0616]
[1724679359411,0.005,63796.0,63789.0,0.0616]
[1724679359622,0.005,63796.0,63790.0,0.336525]
[1724679359827,0.313482,63800.0,63795.0,0.156752]
[1724679360032,0.156743,63799.0,63795.0,0.156752]
[1724679360236,0.156743,63799.0,63790.0,0.336525]
[1724679360237,0.005,63797.0,63788.0,0.313536]
[1724679360451,0.005,63797.0,63791.0,0.156761]
[1724679360661,0.005,63797.0,63794.0,0.156753]
[1724679360869,0.005,63797.0,63795.0,0.156751]
[1724679361070,0.005,63797.0,63789.0,0.023]
[1724679361071,0.161751,63796.0,63792.0,0.156758]
[1724679361275,0.005,63796.0,63793.0,0.156754]
[1724679361481,0.156747,63797.0,63793.0,0.156754]
[1724679361693,0.00391888,63796.0,63771.0,0.314847]
[1724679361913,0.1650599,63795.0,63771.0,0.001226]
[1724679362128,0.0779,63782.0,63771.0,0.001226]
[1724679362341,0.313592,63777.0,63771.0,0.001226]
[1724679362546,0.156808,63772.0,63771.0,0.001226]
[1724679362966,0.5533456,63772.0,63771.0,0.001226]
[1724679363169,0.235808,63772.0,63771.0,0.001226]
[1724679363386,0.079,63779.0,63771.0,0.001226]
[1724679363593,0.014,63782.0,63771.0,0.001226]
[1724679363800,0.12588473,63784.0,63772.0,0.06743123]
[1724679363801,0.079,63784.0,63772.0,0.06743123]
[1724679364010,0.165,63786.0,63772.0,0.22047801]
[1724679364011,0.00391943,63786.0,63772.0,0.22047801]
[1724679364222,0.0812,63791.0,63773.0,0.00313036]
[1724679364433,0.1,63795.0,63790.0,0.156764]
[1724679364643,0.0812,63796.0,63792.0,0.156758]
[1724679364848,0.313485,63799.0,63792.0,0.156758]
[1724679365061,0.36035773,63802.0,63799.0,0.156741]
[1724679365062,0.04688473,63802.0,63799.0,0.156741]
[1724679365270,0.314452,63806.0,63793.0,0.313513]
[1724679365271,0.00090861,63805.0,63793.0,0.313513]
[1724679365485,0.00090861,63805.0,63783.0,0.0643]
[1724679365688,0.00090861,63805.0,63795.0,0.156751]
[1724679365689,0.156738,63801.0,63795.0,0.156751]
[1724679365901,0.156738,63801.0,63792.0,0.313515]
[1724679365902,0.156738,63801.0,63796.0,0.156749]
[1724679366106,0.156738,63801.0,63787.0,0.313542]
[1724679366107,0.15674,63800.0,63795.0,0.156751]
[1724679366313,0.156737,63802.0,63797.0,0.156746]
[1724679366523,0.00090861,63805.0,63784.0,0.17917801]
[1724679366731,0.00090861,63805.0,63799.0,0.156741]
[1724679366732,0.156732,63803.0,63799.0,0.156741]
[1724679366938,0.00390861,63805.0,63797.0,0.156744]
[1724679366939,0.156735,63802.0,63797.0,0.156744]
[1724679367147,0.00090861,63805.0,63799.0,0.0789]
[1724679367358,0.00090861,63805.0,63804.0,0.470188]
[1724679367567,0.00090861,63805.0,63804.0,1.120106]
[1724679367770,0.00090861,63805.0,63804.0,1.27628401]
[1724679368198,0.00090861,63805.0,63804.0,1.35328401]
[1724679368632,0.00090861,63805.0,63804.0,1.73134301]
[1724679369073,0.00090861,63805.0,63804.0,2.14580201]
[1724679369280,0.0814,63842.0,63836.0,0.15665]
[1724679369490,0.003,63843.0,63840.0,0.156641]
[1724679369912,0.003,63843.0,63831.0,0.0799]
[1724679369913,0.00591615,63843.0,63831.0,0.0799]
[1724679370126,0.00691615,63843.0,63833.0,0.313315]
[1724679370364,0.003,63843.0,63840.0,0.156641]
[1724679370576,0.003,63843.0,63838.0,0.156645]
[1724679370785,0.003,63843.0,63840.0,0.002]
[1724679370995,0.156639,63841.0,63840.0,0.002]
[1724679371227,0.469917,63841.0,63840.0,0.002]
[1724679371433,0.156639,63841.0,63840.0,0.004]
[1724679371640,0.003,63843.0,63840.0,0.004]
[1724679371844,0.003,63843.0,63840.0,0.002]
[1724679371845,0.156637,63842.0,63840.0,0.002]
[1724679372050,0.003,63843.0,63840.0,0.002]
[1724679372051,0.159635,63843.0,63840.0,0.002]
[1724679372261,0.16055531,63841.0,63840.0,0.002]
[1724679372490,0.78711131,63841.0,63840.0,0.002]
[1724679373320,0.313283,63840.0,63832.0,0.156659]
[1724679373538,0.313283,63840.0,63831.0,0.313324]
[1724679373797,0.156641,63840.0,63834.0,0.156655]
[1724679374004,0.001,63841.0,63839.0,0.156643]
[1724679374220,0.156642,63840.0,63835.0,0.156653]
[1724679374435,0.00391634,63839.0,63830.0,0.313329]
[1724679374651,0.156647,63838.0,63811.0,0.101]
[1724679374863,0.31328,63841.0,63823.0,0.313363]
[1724679374864,0.08661677,63837.0,63823.0,0.313363]
[1724679375093,0.313313,63834.0,63823.0,0.313363]
[1724679375294,0.16057577,63833.0,63824.0,0.313361]
[1724679375538,0.16057577,63833.0,63819.0,0.396584]
[1724679375539,0.0827,63837.0,63823.0,0.313365]
[1724679375748,0.00845881,63832.0,63831.0,0.46999]
[1724679375957,0.00845881,63832.0,63824.0,0.18230105]
[1724679375958,0.001,63842.0,63832.0,0.0763]
[1724679376164,0.001,63840.0,63839.0,0.156644]
[1724679376376,0.001,63840.0,63839.0,0.469932]
[1724679376584,0.001,63861.0,63839.0,0.469932]
[1724679376585,0.0825,63853.0,63845.0,0.156629]
[1724679376795,0.16909701,63857.0,63845.0,0.469887]
[1724679377008,0.10909701,63857.0,63845.0,0.73136501]
[1724679377219,0.10909701,63857.0,63845.0,1.10882301]
[1724679377429,0.10909701,63857.0,63845.0,1.42208101]
[1724679378302,0.10909701,63857.0,63845.0,1.10882301]
[1724679378731,0.10909701,63857.0,63845.0,1.42208101]
[1724679378957,0.10909701,63857.0,63845.0,1.46223727]
[1724679379366,0.010108,63846.0,63845.0,1.46223727]
[1724679379552,0.009108,63846.0,63845.0,1.46223727]
[1724679379785,0.009108,63846.0,63845.0,1.10882301]
[1724679379990,0.010108,63846.0,63845.0,1.10882301]
[1724679380224,0.011108,63846.0,63845.0,1.11082301]
[1724679380838,0.009108,63846.0,63845.0,1.10882301]
[1724679381047,0.011108,63846.0,63845.0,1.42408101]
[1724679381684,0.010108,63846.0,63845.0,1.42208101]
[1724679381914,0.011108,63846.0,63845.0,1.42408101]
[1724679382319,0.010108,63846.0,63845.0,1.73733901]
[1724679382525,0.010108,63846.0,63845.0,1.42408101]
[1724679382765,0.011108,63846.0,63845.0,1.11082301]
[1724679382977,0.010108,63846.0,63845.0,0.471887]
[1724679383189,0.010108,63846.0,63839.0,0.313285]
[1724679383395,0.010108,63846.0,63845.0,0.469887]
[1724679383603,0.009108,63846.0,63845.0,0.156629]
[1724679383809,0.010108,63846.0,63845.0,0.002]
[1724679384016,0.011108,63846.0,63845.0,0.002]
[1724679384229,0.7971556,63846.0,63845.0,0.002]
[1724679384439,0.156633,63844.0,63839.0,0.156642]
[1724679384648,0.16055003,63843.0,63839.0,0.156642]
[1724679384864,0.16055003,63843.0,63839.0,0.002]
[1724679384865,0.00391603,63843.0,63839.0,0.002]
[1724679385077,0.848107,63840.0,63839.0,0.002]
[1724679385285,0.928607,63840.0,63839.0,0.002]
[1724679385704,0.302041,63840.0,63839.0,0.002]
[1724679385955,0.1454,63840.0,63839.0,0.002]
[1724679386168,0.0805,63840.0,63839.0,0.158644]
[1724679386408,0.0805,63840.0,63839.0,0.156644]
[1724679386409,0.004,63840.0,63839.0,0.156644]
[1724679386660,0.156632,63844.0,63839.0,0.156644]
[1724679386859,0.313265,63844.0,63839.0,0.002]
[1724679387077,0.156637,63842.0,63839.0,0.002]
[1724679387290,0.156637,63842.0,63837.0,0.156647]
[1724679387505,0.156637,63842.0,63838.0,0.156645]
[1724679387715,0.001,63840.0,63839.0,0.158644]
[1724679387949,0.001,63840.0,63839.0,0.002]
[1724679388154,0.313271,63843.0,63836.0,0.156651]
[1724679388393,0.156639,63841.0,63837.0,0.156648]
[1724679388606,0.156639,63841.0,63839.0,0.002]
[1724679388809,0.156641,63840.0,63839.0,0.002]
[1724679389247,0.157641,63840.0,63839.0,0.002]
[1724679389489,0.70541827,63840.0,63839.0,0.002]
[1724679389694,1.01478501,63840.0,63839.0,0.002]
[1724679389914,0.313298,63837.0,63827.0,0.313346]
[1724679390144,0.156647,63838.0,63834.0,0.156655]
[1724679390376,0.156652,63836.0,63832.0,0.15666]
[1724679390608,0.0754,63840.0,63836.0,0.15665]
[1724679390835,0.0764,63840.0,63835.0,0.156653]
[1724679391052,0.393683,63840.0,63833.0,0.313314]
[1724679391267,0.0804,63840.0,63836.0,0.156651]
[1724679391468,0.0794,63840.0,63827.0,0.0775]
[1724679391680,0.156649,63837.0,63831.0,0.313322]
[1724679391882,0.156648,63838.0,63834.0,0.156655]
[1724679392102,0.0794,63840.0,63828.0,0.17917801]
[1724679392314,0.0754,63840.0,63833.0,0.313316]
[1724679392538,0.23223,63845.0,63841.0,0.156638]
[1724679392749,0.009108,63846.0,63834.0,0.15617801]
[1724679392970,0.009108,63846.0,63844.0,0.15663]
[1724679393453,0.009108,63846.0,63840.0,0.15664]
[1724679393673,0.007,63845.0,63835.0,0.336303]
[1724679393886,0.001,63840.0,63838.0,0.156644]
[1724679394104,0.001,63840.0,63837.0,0.156647]
[1724679394335,0.313267,63844.0,63837.0,0.313295]
[1724679394545,0.313267,63844.0,63836.0,0.3133]
[1724679394546,0.156631,63845.0,63840.0,0.156641]
[1724679394763,0.156632,63844.0,63838.0,0.313292]
[1724679394973,0.156632,63844.0,63836.0,0.313302]
[1724679394974,0.156636,63843.0,63836.0,0.313302]
[1724679395187,0.016108,63846.0,63838.0,0.313292]
[1724679395411,0.025108,63846.0,63844.0,0.156629]
[1724679395624,0.016108,63846.0,63842.0,0.469904]
[1724679395848,0.016108,63846.0,63845.0,0.156629]
[1724679396069,0.016108,63846.0,63845.0,0.469887]
[1724679396276,0.009108,63846.0,63845.0,0.783145]
[1724679396713,0.009108,63846.0,63845.0,1.119403]
[1724679396956,0.009108,63846.0,63845.0,0.806145]
[1724679397179,0.018108,63846.0,63845.0,0.806145]
[1724679397403,0.018108,63846.0,63845.0,0.807145]
[1724679397615,0.018108,63846.0,63845.0,0.157629]
[1724679397818,0.094108,63846.0,63845.0,0.001]
[1724679398025,0.094108,63846.0,63845.0,0.157629]
[1724679398026,0.018108,63846.0,63845.0,0.157629]
[1724679398263,0.02549653,63846.0,63845.0,0.157629]
[1724679398472,0.01649653,63846.0,63845.0,0.157629]
[1724679398680,0.01649653,63846.0,63845.0,0.470887]
[1724679398906,0.01649653,63846.0,63845.0,0.784145]
[1724679399114,0.009108,63846.0,63845.0,0.807145]
[1724679399325,0.009108,63846.0,63845.0,1.27658101]
[1724679399551,0.009108,63846.0,63845.0,1.33848101]
[1724679400386,0.009108,63846.0,63845.0,1.65173901]
[1724679400595,0.009108,63846.0,63845.0,1.73353901]
[1724679401254,0.009108,63846.0,63845.0,1.73253901]
[1724679402497,0.011108,63846.0,63845.0,1.73753901]
[1724679403089,0.011108,63846.0,63845.0,0.315258]
[1724679403090,0.010108,63846.0,63845.0,0.315258]
[1724679403313,0.010108,63846.0,63845.0,0.785145]
[1724679403523,0.01868842,63846.0,63845.0,1.101403]
[1724679403723,0.01868842,63846.0,63845.0,0.788145]
[1724679403925,0.010108,63846.0,63845.0,0.785145]
[1724679404338,0.011108,63846.0,63845.0,0.94632301]
[1724679404747,0.011108,63846.0,63845.0,0.96932301]
[1724679404951,0.010108,63846.0,63845.0,0.96732301]
[1724679405159,0.010108,63846.0,63845.0,0.028]
[1724679405363,0.011108,63846.0,63845.0,0.186629]
[1724679405565,0.01871918,63846.0,63845.0,0.186629]
[1724679405768,0.01871918,63846.0,63845.0,0.499887]
[1724679405954,0.01771918,63846.0,63845.0,0.494887]
[1724679406193,0.01771918,63846.0,63845.0,0.003]
[1724679406407,0.17434518,63846.0,63845.0,0.003]
[1724679406613,0.01871918,63846.0,63845.0,0.005]
[1724679406825,0.156637,63842.0,63836.0,0.314124]
[1724679407030,0.313261,63845.0,63839.0,0.156643]
[1724679407233,0.313261,63845.0,63836.0,0.000825]
[1724679407234,0.00761093,63841.0,63836.0,0.000825]